[Event "Chhattisgarh Masters GM 2022"]
[Site "Chhattisgarh"]
[Date "2022.09.19"]
[Round "1.3"]
[White "Ratnakaran, K.."]
[Black "Franco Valencia, Angela"]
[Result "0-1"]
[ECO "C77"]
[WhiteElo "2352"]
[BlackElo "2066"]
[Annotator "TA"]
[PlyCount "96"]
[EventDate "2022.09.19"]
[EventCountry "IND"]
[SourceTitle "playchess.com"]
[Source "ChessBase"]
[SourceQuality "1"]
[TimeControl "5400+30"]

{[%evp 11,96,-17,-15,-12,16,-6,0,0,24,43,38,34,115,102,108,101,99,0,13,15,16,19,62,79,146,139,89,-231,-222,-225,-221,-217,-225,-245,-246,-249,-186,-197,-187,-203,-216,-441,-456,-391,-258,-347,-345,-392,-392,-394,-389,-419,-408,-825,-291,-279,-282,-271,-278,-284,-290,-428,-313,-675,-522,-526,-528,-525,-515,-509,-522,-520,-502,-475,-479,-474,-500,-698,-697,-1045,-1030,-842,-656,-990,-749,-719,-631]} 1. e4 {[%emt 0:00:04]} e5 {[%emt 0:07:32]} 2. Nf3 {[%emt 0:00:06]} Nc6 {[%emt 0:00:10]} 3. Bb5 {[%emt 0:00:07]} a6 {[%emt 0:00:17]} 4. Ba4 {[%emt 0:00:06]} Nf6 {[%emt 0:02:19]} 5. Qe2 {[%emt 0:00:09]} Bc5 {[%emt 0:00:53]} 6. c3 {[%emt 0:00:20]} b5 {[%emt 0:00:46] CPLX 2.2 6...0-0 deserves study.} 7. Bc2 {[%emt 0:00:12][%cal Of3e5] BESTDEEP. C77: Ruy Lopez: 3...a6 4 Ba4 Nf6, unusual lines.} d6 {[%emt 0:01:27] CPLX 2.0 28 (0-0) (=14)} 8. h3 {[%emt 0:00:22] CPLX 2.0 22 (0-0) (=11)} h6 {[%emt 0:05:12] CPLX 2.1 6 (0-0) (=11)} 9. O-O {[%emt 0:01:04] [#] BESTDEEP. The position is equal.} g5 $146 {[%emt 0:02:11] CPLX 2.4 24 (Bc5-a7) (=15)} ({Predecessor:} 9... Bd7 10. Re1 O-O 11. d3 Nh7 12. Nbd2 Ng5 {½-½ (12) Dvorsky,J (1994)-Meszaros,L (1950) Slovakia 2018}) 10. a4 {[%emt 0:00:18] BESTDEEP} g4 {[%emt 0:05:16] BESTDEEP} 11. hxg4 {[%emt 0:00:04] EASY} Rb8 {[%emt 0:02:13] RELBLUND 81 (Bc8xg4) (=23)} ({Black should try} 11... Bxg4 $14 12. b4 (12. axb5 axb5 13. Rxa8 Qxa8 $11) 12... Bxb4) 12. axb5 {[%emt 0:00:10] CPLX 2.9 13 (d2-d4) (=6)} axb5 {[%emt 0:00:05] RECAPT} 13. d4 {[%emt 0:09:00] CPLX 2.9} exd4 {[%emt 0:03:24] [#] EASY} 14. b4 {[%emt 0:00:08] MISSDEEP-e4-e5 99 (e4-e5) (=17)} ({White should play} 14. e5 $1 $16 {[%cal Re5f6]} Nxg4 15. b4) 14... Bb6 {[%emt 0:01:14] CPLX 3.1 13 (Bc8xg4) (=17)} 15. e5 {[%emt 0:11:11] BESTDEEP} dxe5 {[%emt 0:14:59] CPLX 3.4} 16. Bd3 {[%emt 0:05:34] CPLX 3.1 0 (Nf3xe5) (=13)} Nxg4 {[%emt 0:13:19] CPLX 3.2 43 (0-0) (=18)} 17. Bxb5 {[%emt 0:01:32] Threatens to win with Nxe5. EASY} Bd7 {[%emt 0:02:00] CPLX 3.6 67 (Qd8-f6) (=22)} (17... Qf6 $142) 18. Bxc6 $16 {[%emt 0:03:48] CPLX 3.3} Bxc6 {[%emt 0:00:10] RECAPT} 19. Nxd4 {[%emt 0:00:07][%mdl 8192] [#] White does not recover from this. RELBLUND 320 (Nf3xe5) (=35)} (19. Nxe5 $16 {is necessary to keep the advantage.} Qe7 20. Qxg4 Qxe5 21. Bf4) 19... Qh4 $1 $19 {[%emt 0:06:35][%csl Gg4][%cal Rh4h2] EASY} 20. Bf4 {[%emt 0:00:11] Prevents Qh2+. EASY} Bxd4 {[%emt 0:04:12] EASY} 21. cxd4 {[%emt 0:00:21] RECAPT} Bb5 {[%emt 0:01:20] EASY} (21... Rxb4 22. Bg3 Qg5 23. Qc2 $14) 22. Qe4 {[%emt 0:01:03] CPLX 5.5 20 (Qe2-e1) (=30)} Bxf1 $40 {[%emt 0:02:32][%mdl 128] Black goes for the king. Really sharp! EASY} 23. Bg3 {[%emt 0:00:26] [#] EASY} Bxg2 $1 {[%emt 0:04:45] CPLX 5.8 63 (Qh4-g5) (=18)} 24. Kxg2 {[%emt 0:01:57] RECAPT} Qg5 {[%emt 0:00:52] ...h5 is the strong threat. EASY} 25. Qc6+ {[%emt 0:10:01] CPLX 4.5 16 (Nb1-c3) (=26)} Kf8 {[%emt 0:00:41] EASY} 26. Qxc7 $2 {[%emt 0:02:00] [#] CPLX 4.9 225 (Nb1-c3) (=36)} (26. Nc3) 26... Kg7 $1 {[%emt 0:00:42] DEEPSTRONG=>BLUNDERREACT} 27. Ra7 {[%emt 0:00:42][%csl Ga7][%cal Rc7f7] CPLX 4.6 0 (Qc7-c3) (=34)} Qf5 {[%emt 0:02:36] CPLX 5.7 133 (Qg5-g6) (=21)} 28. Nd2 {[%emt 0:02:42] Prevents Qe4+. CPLX 5.9 89 (Bg3xe5) (=37)} Rhc8 {[%emt 0:02:16] BESTDEEP} ({Avoid the trap} 28... Rxb4 $2 29. dxe5 Rd4 30. e6 Ne3+ 31. Kg1 Rxd2 32. Qxf7+ Qxf7 33. Rxf7+ Kg6 34. fxe3) 29. Qd6 {[%emt 0:04:35] CPLX 5.6 47 (Qc7-d7) (=37)} Rd8 {[%emt 0:00:45] EASY} 30. Qe7 {[%emt 0:03:00] BESTDEEP} Re8 {[%emt 0:00:31] BESTDEEP} 31. Qc7 {[%emt 0:02:58] CPLX 5.8 30 (Qe7-c5) (=35)} Rbc8 {[%emt 0:00:32] BESTDEEP} 32. Qd6 {[%emt 0:00:24] MISS-Qc7-d7 400 (Qc7-d7) (=49)} (32. Qd7 $142 Qg6 33. Rc7) 32... e4 $2 {[%emt 0:01:24] CPLX 5.6 400 (Re8-d8) (=32)} (32... Red8 33. Qa6 Rxd4) 33. Ra5 {[%emt 0:01:30] CPLX 5.6=>BLUNDERREACT} Qg6 {[%emt 0:01:47] CPLX 5.5} 34. Qxg6+ {[%emt 0:01:38] EASY} Kxg6 {[%emt 0:00:16] RECAPT} (34... fxg6 $2 {too greedy.} 35. Ra7+ Kf8 36. b5 $17) 35. Rc5 {[%emt 0:02:03] Against Rc2. CPLX 2.7 6 (Ra5-a2) (=44)} e3 {[%emt 0:01:50] CPLX 2.9} 36. Nf3 {[%emt 0:02:51] CPLX 3.4 138 (f2xe3) (=48)} (36. fxe3 $142 Nxe3+ 37. Kf2) 36... exf2 {[%emt 0:02:31] Hoping for ...Rxc5. CPLX 3.1 115 (Rc8xc5) (=31)} 37. b5 $2 {[%emt 0:12:08] MISSDEEP-Nf3-e5 362 (Nf3-e5) (=58)} (37. Ne5+ Nxe5 38. Bxe5) 37... Ra8 {[%emt 0:05:05] CPLX 3.9 153 (Rc8xc5) (=35). Black is clearly winning.} 38. Ne5+ {[%emt 0:16:03] BESTDEEP} Nxe5 {[%emt 0:00:28] EASY} 39. Bxe5 {[%emt 0:01:00][%mdl 4096] Endgame KRR-KRB. RECAPT} Ra2 {[%emt 0:01:48] DEEPSTRONG} 40. b6 {[%emt 0:00:49] CPLX 3.8} Rb2 {[%emt 0:01:09] EASY} 41. b7 {[%emt 0:00:17] BESTDEEP} f1=Q+ {[%emt 0:01:37] CPLX 4.7 18 (f2-f1N) (=32)} 42. Kxf1 {[%emt 0:00:06] EASY} Rxb7 {[%emt 0:00:14] CPLX 3.9} 43. Ke2 {[%emt 0:00:10] CPLX 2.5 0 (Kf1-f2) (=48)} Rb3 {[%emt 0:00:46] CPLX 2.6 0 (Kg6-g5) (=30)} ({Don't blunder} 43... f6 $2 44. Rc6 $19) 44. Kd2 {[%emt 0:00:13] CPLX 2.9 198 (Ke2-f2) (=52)} Re6 {[%emt 0:00:50] Inhibits Rc6. BESTDEEP} 45. Ra5 {[%emt 0:00:37] CPLX 2.6 348 (Rc5-c8) (=60)} f6 {[%emt 0:00:31]} 46. Bc7 {[%emt 0:00:28]} Rc6 {[%emt 0:00:38]} 47. Ra7 {[%emt 0:00:05]} Rcc3 {[%emt 0:00:00] Strongly threatening ...Rc4.} 48. d5 {[%emt 0:00:00]} Rh3 {[%emt 0:00:00] Weighted Error Value: White=0.69/Black=0.51} 0-1

[Event "Chhattisgarh Masters GM 2022"]
[Site "Chhattisgarh"]
[Date "2022.09.19"]
[Round "1.4"]
[White "Aswath S"]
[Black "Deepan Chakkravarthy J."]
[Result "0-1"]
[ECO "B17"]
[WhiteElo "2135"]
[BlackElo "2439"]
[Annotator "TA"]
[PlyCount "100"]
[EventDate "2022.09.19"]
[EventCountry "IND"]
[SourceTitle "playchess.com"]
[Source "ChessBase"]
[SourceQuality "1"]
[TimeControl "5400+30"]

{[%evp 17,100,30,25,20,15,15,18,16,10,21,15,6,10,20,64,67,57,13,56,39,62,51,34,11,13,16,9,0,0,0,0,0,0,0,0,0,0,0,0,0,6,-3,-11,-16,-20,-20,-26,-43,-50,-58,-34,-90,-135,-419,-418,-414,-391,-491,-259,-259,-265,-257,-256,-1872,-816,-637,-637,-1436,-1086,-1437,-1301,-1197,-862,-2129,-2717,-2810,-2303,-1933,-1679,-12833,-12831,-29989,-29990,-29990,-29991]} 1. e4 {[%emt 0:00:07]} c6 {[%emt 0:00:31]} 2. d4 {[%emt 0:00:07]} d5 {[%emt 0:00:04]} 3. Nc3 {[%emt 0:00:08]} dxe4 {[%emt 0:00:07]} 4. Nxe4 {[%emt 0:00:06]} Nd7 {[%emt 0:00:28]} 5. Nf3 {[%emt 0:02:36]} Ngf6 {[%emt 0:00:27]} 6. Nxf6+ {[%emt 0:01:20]} Nxf6 {[%emt 0:00:03]} 7. Bc4 {[%emt 0:01:57]} Bf5 {[%emt 0:00:38]} 8. O-O {[%emt 0:03:00]} e6 {[%emt 0:00:04]} 9. Re1 {[%emt 0:03:16]} Be7 {[%emt 0:01:21]} 10. Qe2 {[%emt 0:05:04] CPLX 2.2 5 (c2-c3) (=5). B17: Caro-Kann: Modern Line (4...Nd7).} O-O {[%emt 0:00:41]} 11. Bg5 {[%emt 0:01:20] CPLX 2.2} h6 {[%emt 0:00:07] CPLX 2.4} 12. Bh4 {[%emt 0:01:26] [#] BESTDEEP. The position is equal.} Qc7 $146 {[%emt 0:06:20]} ({Predecessor:} 12... Qb6 13. c3 Rad8 14. Rad1 c5 15. Bb3 Rfe8 16. d5 exd5 17. Ba4 Bd7 18. Bxd7 Rxd7 {0-1 (29) Nyrhinen,H-Sjoman,T Finland 2000}) 13. c3 {[%emt 0:03:37] BESTDEEP} b5 {[%emt 0:01:05][%cal Bb7b5,Bb5b4][%mdl 32] CPLX 2.7} 14. Bb3 {[%emt 0:02:34] CPLX 2.9 9 (Bc4-d3) (=3)} a5 {[%emt 0:00:14] BESTDEEP} 15. a4 {[%emt 0:01:47] BESTDEEP} Qb7 {[%emt 0:02:11] CPLX 2.9 44 (b5-b4) (=6)} 16. Ne5 {[%emt 0:01:37] BESTDEEP} b4 {[%emt 0:11:04] CPLX 3.1} 17. Bc4 {[%emt 0:10:55] CPLX 3.0 44 (c3-c4) (=7)} g5 {[%emt 0:18:48] CPLX 3.0 43 (Nf6-d5) (=10)} 18. Bg3 {[%emt 0:01:39] EASY} c5 {[%emt 0:00:07] CPLX 2.7 23 (b4xc3) (=11)} 19. dxc5 {[%emt 0:05:05] CPLX 3.2 11 (c3xb4) (=7)} Bxc5 {[%emt 0:01:03] RECAPT} 20. Nd3 {[%emt 0:07:09] CPLX 3.7 23 (Bc4-d3) (=8)} Be7 {[%emt 0:00:54] BESTDEEP} 21. cxb4 {[%emt 0:01:37] CPLX 3.0} Rac8 {[%emt 0:09:22] DEEPSTRONG} 22. Bb5 {[%emt 0:07:10] CPLX 3.5 9 (b2-b3) (=8)} axb4 {[%emt 0:00:58] BESTDEEP} 23. Be5 {[%emt 0:13:17] CPLX 3.2 0 (Re1-c1) (=7)} b3 {[%emt 0:02:13] BESTDEEP} 24. Rec1 {[%emt 0:08:36][%cal Od3c5] Against Rc2. CPLX 4.0 0 (Ra1-c1) (=7)} Rfd8 {[%emt 0:01:03] BESTDEEP} 25. Rxc8 {[%emt 0:02:06] CPLX 4.3} Rxc8 {[%emt 0:04:14] RECAPT} 26. Rc1 {[%emt 0:01:27] Against Rc2. CPLX 3.6 0 (Nd3-e1) (=6)} Rxc1+ {[%emt 0:00:13] CPLX 3.9} 27. Nxc1 {[%emt 0:00:08] RECAPT} Be4 $1 {[%emt 0:00:06] CPLX 3.2} 28. f3 {[%emt 0:02:24] CPLX 3.3 0 (Nc1xb3) (=5)} Qb6+ {[%emt 0:06:37] CPLX 4.4} 29. Kf1 $132 {[%emt 0:00:33][%mdl 2048] White is fighting back. CPLX 3.9 9 (Kg1-h1) (=6)} Bc2 {[%emt 0:09:36] CPLX 3.6} 30. Bc4 {[%emt 0:05:59] CPLX 3.3 5 (Qe2-d2) (=5)} Nd5 {[%emt 0:02:49] CPLX 3.1} 31. Bxd5 {[%emt 0:02:26] EASY} exd5 {[%emt 0:00:02][%cal Be6d5,Bd5d4,Bd4d3][%mdl 32] RECAPT} 32. Bc3 {[%emt 0:02:17] CPLX 3.0 17 (Qe2-d2) (=6)} d4 {[%emt 0:00:17] CPLX 3.2} 33. Bd2 {[%emt 0:01:49] BESTDEEP} Bf6 {[%emt 0:00:10][%cal Od4d3] CPLX 2.5 24 (Be7-a3) (=5)} (33... Ba3 {is more complex.} 34. Qe8+ Kg7 35. Qe5+ Qf6) 34. a5 {[%emt 0:00:49] [#] CPLX 2.4 56 (Qe2-c4) (=8)} (34. Qc4 $15) 34... Qc6 $1 $17 {[%emt 0:00:45] Black is more active. DEEPSTRONG} 35. Nd3 $2 {[%emt 0:01:14][%mdl 8192] Loses the game. CPLX 2.4 284 (h2-h4) (=18)} (35. h4 $17) 35... Qb5 $19 {[%emt 0:03:10] CPLX 2.3=>BLUNDERREACT} 36. Nb4 {[%emt 0:00:53] CPLX 2.5} d3 {[%emt 0:02:08] EASY} 37. Qe4 {[%emt 0:00:02] CPLX 3.2 100 (Qe2-e3) (=20)} Qxa5 {[%emt 0:00:05] CPLX 3.6 232 (Bf6xb2) (=13)} (37... Bxb2 $142 {Strongly threatening ...Bg7.} 38. Nd5 Bg7 39. Ne7+ Kf8) 38. Nd5 {[%emt 0:01:18] DEEPSTRONG=>BLUNDERREACT} Qa1+ {[%emt 0:02:59] EASY} ({Worse is} 38... Qxd2 39. Nxf6+ Kg7 40. Nh5+ Kf8 41. Qa8+ Ke7 42. Qe4+ Kd6 43. Qd4+ Kc7 44. Qe5+ (44. Ng3 Kc8 $11) 44... Kc6 45. Qe4+ Kd6 46. Qd4+ Kc7 47. Ng3 $11) 39. Kf2 {[%emt 0:00:10] CPLX 4.9} Qxb2 {[%emt 0:01:02] ...Qd4+ is the strong threat. BESTDEEP} ({Stronger than} 39... Bxb2 40. Qe8+ Kg7 41. Ne7 $17) 40. Bc1 $2 {[%emt 0:00:52] RELBLUND 400 (Qe4-e8) (=31)} (40. Qe8+ Kg7 41. Ne7 Qd4+ 42. Be3 Qh4+ 43. Kf1 Bxe7 44. Qxe7) 40... Qd4+ {[%emt 0:03:38] CPLX 4.2 400 (Bf6-d4) (=24)} (40... Bd4+ $142 41. Be3 Bb1+ 42. Kg3 Be5+ 43. Kh3 d2 44. Ne7+ Kf8) 41. Be3 {[%emt 0:00:03] CPLX 4.0 0 (Qe4xd4) (=30)} Qe5 {[%emt 0:00:00] CPLX 4.6} 42. Nxf6+ {[%emt 0:00:00] MISSDEEP-f3-f4 400 (f3-f4) (=42)} Qxf6 {[%emt 0:00:00][%mdl 4096] Endgame KQB-KQB. RECAPT} 43. Bd4 {[%emt 0:00:00] [#] CPLX 4.0 351 (Qe4-e8) (=51)} Qd8 $1 {[%emt 0:00:00] Hoping for ...d2. DEEPSTRONG} 44. Qe5 {[%emt 0:00:00] EASY} f6 $1 {[%emt 0:00:00] EASY} 45. Qe6+ {[%emt 0:00:00] CPLX 3.4 400 (Qe5-e3) (=59)} Kg7 {[%emt 0:00:00] EASY} 46. Bb6 {[%emt 0:00:00] CPLX 3.9 93 (Kf2-e3) (=60)} Qg8 {[%emt 0:00:00]} 47. Qd6 {[%emt 0:00:00]} Qf8 {[%emt 0:00:00]} 48. Qd4 {[%emt 0:00:00]} Qe7 {[%emt 0:00:00] ( -> ...Qe2+)} 49. f4 {[%emt 0:00:00]} Qe2+ {[%emt 0:00:00]} 50. Kg3 {[%emt 0:00:00]} Qe1+ {[%emt 0:00:00] Weighted Error Value: White=0.64/Black=0.29 (precise)} 0-1

[Event "Chhattisgarh Masters GM 2022"]
[Site "Chhattisgarh"]
[Date "2022.09.19"]
[Round "1.4"]
[White "Luong Phuong Hanh"]
[Black "Viani Antonio Dcunha"]
[Result "1/2-1/2"]
[ECO "A43"]
[WhiteElo "2056"]
[BlackElo "2348"]
[Annotator "TA"]
[PlyCount "138"]
[EventDate "2022.09.19"]
[EventCountry "IND"]
[SourceTitle "playchess.com"]
[Source "ChessBase"]
[SourceQuality "1"]
[TimeControl "5400+30"]

{[%evp 18,138,68,59,66,40,41,22,25,32,36,23,26,24,31,17,22,-12,-11,-11,-9,-19,4,7,13,13,6,2,3,0,148,149,152,159,153,73,77,74,83,72,80,82,77,75,94,95,100,83,91,84,97,93,101,81,91,31,44,12,12,10,10,10,10,10,24,33,37,31,69,39,55,43,57,55,77,11,86,79,96,95,86,83,86,103,86,67,62,44,41,39,45,33,30,20,24,20,24,23,24,8,8,8,8,8,8,8,60,55,57,8,8,8,8,8,8,8,8,8,8,8,8,0,8]} 1. d4 {[%emt 0:00:05]} Nf6 {[%emt 0:00:23]} 2. Nf3 {[%emt 0:00:07]} c5 {[%emt 0:00:23]} 3. d5 {[%emt 0:00:14]} d6 {[%emt 0:00:21]} 4. Nc3 {[%emt 0:00:22]} g6 {[%emt 0:00:25]} 5. e4 {[%emt 0:01:17]} Bg7 {[%emt 0:00:09]} 6. Bb5+ {[%emt 0:00:07]} Nbd7 {[%emt 0:01:12]} 7. a4 {[%emt 0:00:16]} O-O {[%emt 0:00:23]} 8. O-O {[%emt 0:00:12]} a6 {[%emt 0:02:45]} 9. Be2 {[%emt 0:00:09]} Rb8 {[%emt 0:01:03]} 10. Re1 {[%emt 0:01:16] CPLX 2.0 9 (a4-a5) (=9)} b6 {[%emt 0:04:07] BESTDEEP. A43: Schmid Benoni.} 11. h3 {[%emt 0:00:25] CPLX 2.0 26 (Ra1-b1) (=18)} Ne8 {[%emt 0:00:18] BESTDEEP} 12. Bf4 {[%emt 0:02:28] CPLX 2.0 19 (Be2-d3) (=18)} Nc7 {[%emt 0:01:58] CPLX 2.2} 13. Qd2 {[%emt 0:01:13] CPLX 2.2} b5 {[%emt 0:01:21] BESTDEEP} 14. axb5 {[%emt 0:00:14] CPLX 2.5 13 (Be2-d3) (=13)} axb5 {[%emt 0:01:25] RECAPT} 15. Bh6 {[%emt 0:01:40] CPLX 2.4 2 (Be2-d3) (=12)} Nf6 {[%emt 0:04:08] MISS-b5-b4 7 (b5-b4) (=1)} 16. Bxg7 {[%emt 0:05:07] CPLX 2.9 14 (e4-e5) (=12)} Kxg7 {[%emt 0:00:07] [#] RECAPT} 17. e5 $146 {[%emt 0:01:08] CPLX 2.8 34 (Be2-d3) (=15)} ({Predecessor:} 17. Bf1 b4 18. Na4 Bd7 19. Bc4 Bb5 20. Bxb5 Nxb5 21. c4 bxc3 22. bxc3 c4 23. Nb2 Nd7 24. Nd4 {1-0 (80) Jasnikowski,Z (2445)-Filipowicz,A (2385) Warsaw 1990}) 17... dxe5 {[%emt 0:03:52] EASY} 18. Nxe5 {[%emt 0:00:51] RECAPT} Qd6 {[%emt 0:03:55] BESTDEEP} 19. Bf3 {[%emt 0:03:59] BESTDEEP} e6 {[%emt 0:06:21][%cal Re6d5] CPLX 3.6 23 (Bc8-b7) (=3)} 20. Ng4 {[%emt 0:19:30] BESTDEEP} Nxg4 {[%emt 0:00:30] EASY} 21. hxg4 {[%emt 0:01:44] Hoping for Ne4. RECAPT} Nxd5 $1 {[%emt 0:01:08] CPLX 3.3} 22. Bxd5 {[%emt 0:08:27] RECAPT 4 (Ra1-a5) (=9)} exd5 {[%emt 0:00:17] RECAPT} 23. Ne4 {[%emt 0:01:05] CPLX 3.2} Qc6 {[%emt 0:01:43] RELBLUND 148 (Qd6-b6) (=13)} (23... Qb6 $11 24. Qxd5 Bxg4) 24. Qc3+ $16 {[%emt 0:00:27] CPLX 3.9=>BLUNDERREACT} d4 {[%emt 0:01:13] CPLX 3.7} 25. Qg3 $36 {[%emt 0:00:36][%mdl 2048] Black is under strong pressure. CPLX 3.1} Bb7 {[%emt 0:20:07] [#] CPLX 3.4} 26. Qe5+ {[%emt 0:09:49] MISSDEEP-g4-g5 80 (g4-g5) (=12)} (26. g5 $142 $1) 26... f6 {[%emt 0:00:14] CPLX 3.4} 27. Qxc5 {[%emt 0:00:16] White is much more active. CPLX 4.5} Rfe8 {[%emt 0:04:31] CPLX 4.3} 28. Qxc6 {[%emt 0:01:53] EASY} Bxc6 {[%emt 0:00:08] RECAPT} 29. Nc5 {[%emt 0:00:54] CPLX 2.1} Ra8 {[%emt 0:06:26] CPLX 2.3} 30. Rad1 {[%emt 0:05:09] BESTDEEP} Ra2 {[%emt 0:12:13] MISS-Re8xe1 19 (Re8xe1) (=9)} 31. Ne6+ {[%emt 0:01:13] CPLX 2.4} Kf7 {[%emt 0:00:11] CPLX 2.1} 32. Nxd4 {[%emt 0:00:17] EASY} Rxe1+ {[%emt 0:00:15] CPLX 2.4} 33. Rxe1 {[%emt 0:00:23][%mdl 4096] Endgame KRB-KRN. RECAPT} Bd7 {[%emt 0:00:16] [#] CPLX 2.0} 34. Rb1 $1 {[%emt 0:00:36] DEEPSTRONG} Ke7 {[%emt 0:02:16] CPLX 2.0 8 (h7-h6) (=8)} 35. Ne2 {[%emt 0:02:52] CPLX 2.0 20 (f2-f3) (=9)} b4 {[%emt 0:04:51] CPLX 2.0 10 (Bd7xg4) (=8)} 36. Nc1 {[%emt 0:00:26] CPLX 2.0 60 (f2-f3) (=10)} (36. f3 $16) 36... Ra8 {[%emt 0:01:01] CPLX 2.0 13 (Ra2-a7) (=8)} 37. Nd3 {[%emt 0:00:12] Black must now prevent f3. CPLX 2.0 32 (f2-f3) (=11)} (37. f3 $5 {[%cal Rc1d3]}) 37... b3 $1 {[%emt 0:00:16] CPLX 2.0} 38. cxb3 {[%emt 0:01:50] And now f3 would win. CPLX 2.0 2 (c2-c3) (=11)} Bxg4 {[%emt 0:00:06] EASY} 39. Rc1 {[%emt 0:00:56] BESTDEEP} Rb8 {[%emt 0:02:03] BESTDEEP} 40. b4 {[%emt 0:07:24] BESTDEEP} Kd6 {[%emt 0:02:23] MISS-Bg4-f5 14 (Bg4-f5) (=8)} 41. Rc4 {[%emt 0:01:04] CPLX 2.0} Bf5 {[%emt 0:00:42] CPLX 2.1 4 (Bg4-d7) (=8)} 42. Rd4+ {[%emt 0:01:31] CPLX 2.2 6 (Nd3-c5) (=10)} Kc6 {[%emt 0:00:19] CPLX 2.0 38 (Kd6-e6) (=9)} 43. Nc5 {[%emt 0:00:41] CPLX 2.0 30 (Nd3-f4) (=10)} Ra8 {[%emt 0:02:13] CPLX 2.2 16 (Rb8-e8) (=9)} 44. g4 {[%emt 0:01:23] CPLX 2.2} Bc8 {[%emt 0:00:47] CPLX 2.4 14 (Bf5-b1) (=9)} 45. Kg2 {[%emt 0:05:49] CPLX 2.0} Ra2 {[%emt 0:00:50] CPLX 2.0 22 (h7-h6) (=9)} 46. Ne4 {[%emt 0:02:38] RELBLUND 66 (b2-b3) (=11)} (46. b3 $16) 46... Rxb2 {[%emt 0:02:20] RELBLUND 75 (f6-f5) (=11)} (46... f5 $1 $11 {remains equal.} 47. gxf5 Bxf5) 47. Nxf6 {[%emt 0:00:24] EASY} h5 {[%emt 0:02:01] BESTDEEP} 48. gxh5 {[%emt 0:01:13] CPLX 2.3 1 (Rd4-c4) (=11)} gxh5 {[%emt 0:00:06] RECAPT} 49. Rc4+ {[%emt 0:00:30] EASY} Kb7 {[%emt 0:00:05] EASY} 50. Nxh5 {[%emt 0:00:10] CPLX 2.1} Bd7 {[%emt 0:00:39] CPLX 2.0} 51. Rf4 {[%emt 0:03:39] CPLX 2.0 19 (Nh5-f6) (=10)} Kb6 {[%emt 0:00:20] CPLX 2.0} 52. Nf6 {[%emt 0:01:11] CPLX 2.0 18 (Rf4-d4) (=11)} Bc6+ {[%emt 0:00:18] CPLX 2.1} 53. Kg3 {[%emt 0:00:07] CPLX 2.0} Kb5 {[%emt 0:00:35] CPLX 2.0} 54. Rf5+ {[%emt 0:04:50] CPLX 2.0 12 (Nf6-g4) (=10)} Kxb4 {[%emt 0:01:01] EASY} 55. Nd5+ {[%emt 0:00:11] CPLX 2.0 10 (Nf6-g4) (=10)} Kc4 {[%emt 0:00:26] CPLX 2.0 4 (Kb4-c5) (=9)} 56. Ne3+ {[%emt 0:00:09] CPLX 2.0} Kd4 {[%emt 0:01:05] CPLX 2.0 4 (Kc4-d3) (=9)} 57. Rf6 {[%emt 0:01:15] CPLX 2.0} Kc5 {[%emt 0:01:22] BESTDEEP} 58. f4 {[%emt 0:01:07] CPLX 2.0 16 (Kg3-h4) (=10)} Rb3 {[%emt 0:04:59] EASY} 59. Re6 {[%emt 0:00:24] BESTDEEP} Bd7 {[%emt 0:00:12] CPLX 2.0} 60. Re5+ {[%emt 0:00:14] CPLX 2.0} Kd6 {[%emt 0:01:53] CPLX 2.0} 61. Kh4 {[%emt 0:00:30]} Rb5 {[%emt 0:00:00]} (61... Rb4 $11 62. Kg3 Rb3) 62. Nc4+ $14 {[%emt 0:00:00]} Kc7 {[%emt 0:00:00]} 63. Re4 {[%emt 0:00:00]} (63. Re3 $14) 63... Rb4 $11 {[%emt 0:00:00] The position is equal.} 64. Kg5 {[%emt 0:00:00]} Bb5 $1 {[%emt 0:00:00]} 65. Re7+ {[%emt 0:00:00]} Kd8 {[%emt 0:00:00]} 66. Rb7 {[%emt 0:00:00] Na3 is the strong threat.} Rxc4 {[%emt 0:00:00]} 67. Rxb5 {[%emt 0:00:00] Threatens to win with Re5.} Ke8 $1 {[%emt 0:00:00]} 68. f5 {[%emt 0:00:00]} Rc6 {[%emt 0:00:00]} 69. f6 {[%emt 0:00:00]} Rc1 {[%emt 0:00:00] Black defended with fortune.  Weighted Error Value: White=0.11 (very precise) /Black=0.12 (very precise)} 1/2-1/2